Cogmind - Beta 9.2 @@@ ROGUE MODE // 2019.11.17 @ 23:14:26 Player: Ctrl_Alt_X Result: Destroyed by G-50 Soldier with Heavy Laser Performance ------------- Evolutions (4) 2000 Regions Visited (16) 3200 Robots Destroyed (109) 545 Value Destroyed (4860) 4860 Prototype IDs (3) 60 Alien Tech Used (0) 0 Bonus (3741) 3741 TOTAL SCORE: 14406 Bonus ------- High Alert Combat Kills 597 Follower Combat Kills 144 Entered Garrisons 1000 Used RIF Installer 2000 Cogmind --------- Core Integrity 0/850 Matter 0/300 Energy 98/100 System Corruption 3% Temperature Cool (13) Movement Hovering (76) Location -6/Garrison Parts ------- > --- POWER (1) -------- (None) > --- PROPULSION (4) --- Combat Airjet Combat Airjet > --- UTILITY (8) ------ Large Storage Unit Enhanced Optical Array Advanced Signal Interpreter Experimental Targeting Computer Hacking Suite Relay Coupler [Swarmer] (35) Relay Coupler [Brawler] (29) > --- WEAPON (2) ------- (None) > --- INVENTORY (10) --- Micro Nuclear Core Flexi-carbon Leg High-capacity Matter Pod (0) Improved Target Analyzer Relay Coupler [NC] (31) Relay Coupler [ARC] (10) Gauss Rifle Coil Gun Mini Grenade Launcher Remote Datajack Peak State ------------ > --- POWER ------------ Micro Nuclear Core > --- PROPULSION ------- Flexi-carbon Leg Flexi-carbon Leg Combat Airjet Combat Airjet > --- UTILITY ---------- Large Storage Unit Advanced Sensor Array Advanced Signal Interpreter Experimental Targeting Computer Improved Shield Generator Hacking Suite Relay Coupler [NC] Relay Coupler [Grunt] > --- WEAPON ----------- Hypervelocity Gauss Rifle Flak Cannon > --- INVENTORY -------- Cooled Deuterium Engine Cooled Deuterium Engine Flexi-carbon Leg Improved Target Analyzer Gauss Rifle Coil Gun Flak Cannon Flak Cannon Mini Grenade Launcher Remote Datajack [Rating: 60] Favorites ----------- Power Light Nuclear Core Engine Ion Engine Power Core Light Nuclear Core Propulsion Combat Airjet Treads Light Treads Leg Aluminum Leg Wheel Armored Huge Wheel Hover Unit Combat Airjet Utility Improved Heat Sink Device Improved Heat Sink Storage Medium Storage Unit Processor Improved Targeting Computer Hackware Hacking Suite Protection Medium Reactive Plating Weapon Flak Gun Energy Gun Small Laser Energy Cannon EM Pulse Cannon Ballistic Gun Flak Gun Ballistic Cannon Flak Cannon Launcher Mini Grenade Launcher Special Weapon Remote Datajack Impact Weapon Makeshift Hammer Build | -11 -10 -10 -10 -9 -8 -8 -8 -8 -7 -7 -7 -7 -6 -6 -6 -6 ------- Run | Scr Mat Min Exi Min Mat Gar Mat Gar Fac Gar Fac Sto Fac Gar Fac Gar Slots Evolved 8 | . . . . . 4 . . . 2 . . . 2 . . . Power . | . . . . . . . . . . . . . . . . . Propulsion 2 | . . . . . 1 . . . . . . . 1 . . . Utility 6 | . . . . . 3 . . . 2 . . . 1 . . . Weapon . | . . . . . . . . . . . . . . . . . Parts Attached 175 | 6 . 16 1 2 15 11 8 27 8 17 17 19 22 5 1 . Power 18 | 1 . 2 . . 1 1 1 5 . 1 1 1 3 1 . . Engine 13 | 1 . 2 . . 1 . 1 4 . . 1 . 2 1 . . Core 5 | . . . . . . 1 . 1 . 1 . 1 1 . . . Reactor . | . . . . . . . . . . . . . . . . . Propulsion 40 | 2 . 10 . 1 4 1 2 2 4 4 3 . 5 1 1 . Treads 1 | . . . . . . . . 1 . . . . . . . . Leg 18 | 2 . 1 . . 3 1 1 . 4 4 . . 2 . . . Wheel 12 | . . 8 . 1 1 . 1 1 . . . . . . . . Hover 9 | . . 1 . . . . . . . . 3 . 3 1 1 . Flight . | . . . . . . . . . . . . . . . . . Utility 55 | 1 . 2 1 . 8 4 1 6 4 6 5 9 6 2 . . Device 17 | . . . . . 1 2 . 4 1 2 2 3 2 . . . Storage 7 | 1 . 1 1 . . . 1 . . . . 1 2 . . . Processor 6 | . . . . . 3 . . . . . 1 1 1 . . . Hackware 6 | . . . . . . . . . 1 . . 2 1 2 . . Protection 19 | . . 1 . . 4 2 . 2 2 4 2 2 . . . . Artifact . | . . . . . . . . . . . . . . . . . Weapon 62 | 2 . 2 . 1 2 5 4 14 . 6 8 9 8 1 . . Energy Gun 6 | 2 . 1 . . . 1 1 . . 1 . . . . . . Energy Cannon 12 | . . . . . 2 1 3 6 . . . . . . . . Ballistic Gun 33 | . . . . . . 2 . 8 . 5 8 7 2 1 . . Ballistic Cannon 5 | . . . . . . . . . . . . . 5 . . . Launcher 1 | . . . . 1 . . . . . . . . . . . . Special Weapon 3 | . . . . . . . . . . . . 2 1 . . . Impact Weapon 2 | . . 1 . . . 1 . . . . . . . . . . Slashing Weapon . | . . . . . . . . . . . . . . . . . Piercing Weapon . | . . . . . . . . . . . . . . . . . Special Melee Weapon . | . . . . . . . . . . . . . . . . . Unidentified Prototypes 3 | . . . . . . . 1 . . . . 1 1 . . . Parts Lost 57 | . . 5 . . 1 9 1 11 1 6 4 2 11 3 3 . Power 7 | . . 1 . . . 1 . 2 . . . . 1 1 1 . Propulsion 17 | . . 2 . . . 1 . 2 1 3 2 1 2 1 2 . Utility 15 | . . . . . . 3 1 3 . 1 2 1 4 . . . Weapon 18 | . . 2 . . 1 4 . 4 . 2 . . 4 1 . . Highest Loss Streak 8 | . . 3 . . 1 3 1 5 1 2 2 2 8 3 3 . Average Slot Usage (%) 89 | . 85 85 100 100 92 84 85 85 91 99 95 96 90 88 70 60 Engine 6 | . 14 13 14 14 9 1 3 7 7 3 3 2 . 6 3 . Core 2 | . . . . . . 6 5 1 . 3 3 4 5 . . . Leg 7 | . 28 14 . . 18 9 3 . 2 22 9 . 2 . . . Wheel 8 | . . 12 28 28 4 9 14 14 5 . . . . . . . Hover 4 | . . . . . . . . . . . 9 20 16 21 15 13 Device 7 | . . . . . 2 6 5 10 15 15 15 11 10 . . . Storage 10 | . 14 20 14 14 9 9 9 9 7 7 7 7 7 13 10 6 Processor 11 | . . . . . 19 18 18 14 7 7 8 15 13 20 20 20 Hackware 4 | . . . . . . . . . 6 7 5 8 18 18 20 20 Protection 8 | . . 1 14 14 10 10 9 8 14 14 13 7 1 . . . Energy Gun 2 | . 28 14 14 8 . . . . . . . . . . . . Energy Cannon 4 | . . . . . 16 3 17 10 7 1 . . . . . . Ballistic Gun 6 | . . . . . . 6 . 7 7 13 15 14 6 3 . . Impact Weapon 2 | . . 7 14 14 . 3 . . . . . . . . . . Naked Turns . | . . . . . . . . . . . . . . . . . Heaviest Build 86 | 9 9 16 16 16 37 38 37 38 62 73 86 47 76 69 59 16 Greatest Support 88 | 20 20 32 20 20 51 28 40 40 40 40 55 55 88 88 66 44 Greatest Overweight (x) 8 | 2 . 2 . . 1 2 3 2 3 3 8 . 1 1 2 . Average Overweight (x) . | . . . . . . . . . 1 1 1 . . . . . Largest Inventory Capacity 18 | 6 6 6 6 6 6 6 8 8 8 8 8 8 18 18 18 10 Average Capacity 7 | 5 6 6 6 6 6 6 7 8 8 8 8 8 11 18 15 10 Most Carried 12 | 3 5 6 6 6 6 6 8 8 8 8 8 8 12 11 12 10 Average Carried 7 | 1 4 5 6 5 5 5 6 7 7 7 7 7 9 10 11 10 Final Capacity 18 | 6 6 6 6 6 6 6 8 8 8 8 8 8 18 18 10 10 Final Carried 11 | 3 5 6 6 6 6 6 8 8 8 8 8 7 10 11 10 10 Class Distribution -------------------- 49% | Scavenger-Mutant 44% | Mutant 6% | Bothacker-Mutant Dominant Class ---------------- Mutant | -10/Materials Mutant | -10/Mines Mutant | -10/Exiles Mutant | -9/Mines Mutant | -8/Materials Scavenger-Mutant | -8/Garrison Mutant | -8/Materials Scavenger-Mutant | -8/Garrison Scavenger-Mutant | -7/Factory Scavenger-Mutant | -7/Garrison Scavenger-Mutant | -7/Factory Scavenger-Mutant | -7/Storage Mutant | -6/Factory Bothacker-Mutant | -6/Garrison Bothacker-Mutant | -6/Factory Bothacker-Mutant | -6/Garrison Resources | -11 -10 -10 -10 -9 -8 -8 -8 -8 -7 -7 -7 -7 -6 -6 -6 -6 ----------- Run | Scr Mat Min Exi Min Mat Gar Mat Gar Fac Gar Fac Sto Fac Gar Fac Gar Matter Collected 3217 | 231 . 202 . 30 177 220 80 473 94 414 426 568 265 37 . . Remotely . | . . . . . . . . . . . . . . . . . Salvage Created 4511 | . . 158 . 155 233 554 267 973 127 767 410 518 312 37 . . Parts 240 | . . 6 . 3 17 23 18 61 9 40 21 27 11 4 . . Haulers Intercepted 6 | . . . . . 2 . 2 . . . . 1 1 . . . Recyclers Shooed 2 | . . . . 2 . . . . . . . . . . . . Parts Field Recycled . | . . . . . . . . . . . . . . . . . Retrieved Matter . | . . . . . . . . . . . . . . . . . Parts Self-Destructed . | . . . . . . . . . . . . . . . . . Prevented . | . . . . . . . . . . . . . . . . . Kills | -11 -10 -10 -10 -9 -8 -8 -8 -8 -7 -7 -7 -7 -6 -6 -6 -6 ------- Run | Scr Mat Min Exi Min Mat Gar Mat Gar Fac Gar Fac Sto Fac Gar Fac Gar Combat Hostiles Destroyed 95 | . . 7 . . 5 14 4 25 5 12 8 9 5 1 . . Melee 5 | . . 4 . . . 1 . . . . . . . . . . Guns 45 | . . 2 . . . 8 . 6 1 10 8 9 1 . . . Cannons 30 | . . . . . 2 . 4 17 . 2 . . 4 1 . . AOE 6 | . . . . . 2 . . . 4 . . . . . . . Classes Destroyed 15 | . . 4 . 2 3 1 1 . . 1 1 . 2 . . . Worker 3 | . . 1 . 2 . . . . . . . . . . . . Builder 1 | . . . . . . . 1 . . . . . . . . . Tunneler 1 | . . . . 1 . . . . . . . . . . . . Hauler 6 | . . . . . 2 . 2 . . . . 1 1 . . . Recycler 2 | . . . . 1 . . . . . . 1 . . . . . Operator 1 | . . . . . 1 . . . . . . . . . . . Swarmer 25 | . . 2 . . 2 4 2 9 3 . 1 2 . . . . Grunt 23 | . . . . . . 6 . 11 . 4 . . 2 . . . Brawler 1 | . . . . . . . . . . . . . 1 . . . Duelist 1 | . . . . . . . . . . 1 . . . . . . Sentry 28 | . . 1 . . 2 3 2 5 1 7 2 5 . . . . Demolisher 2 | . . . . . . . . . . . 2 . . . . . Hunter 6 | . . . . . 1 1 . . 1 . . 2 1 . . . Programmer 2 | . . . . . . . . . . . . . 1 1 . . Assembled 7 | . . 4 . . . . . . . . 3 . . . . . Best Kill Streak 5 | . . 2 . 2 4 3 2 5 4 3 5 1 3 1 . . Combat Bots Only 5 | . . 2 . . 3 3 2 5 4 3 5 1 3 1 . . Max Kills in Single Turn 3 | . . 1 . 1 1 1 1 1 3 1 2 1 1 1 . . Gunslinging 1 | . . . . . . . . . . . 1 . . . . . Exploded 3 | . . . . . 1 . . . 3 . . . . . . . Melee 1 | . . 1 . . . 1 . . . . . . . . . . Uniques/NPCs Destroyed . | . . . . . . . . . . . . . . . . . Combat | -11 -10 -10 -10 -9 -8 -8 -8 -8 -7 -7 -7 -7 -6 -6 -6 -6 -------- Run | Scr Mat Min Exi Min Mat Gar Mat Gar Fac Gar Fac Sto Fac Gar Fac Gar Damage Taken 11401 | . . 657 . . 280 2216 134 1407 661 1298 880 844 1867 462 563 132 Core 2018 | . . 177 . . 19 224 10 163 211 130 113 114 434 105 248 70 Absorbed by Shields 195 | . . . . . . . . 10 . 61 . . 115 9 . . Core Remaining (%) 42 | 100 . . . 29 . . . 24 . . . 18 . . . . Volleys Fired 334 | . . 16 . . 20 45 10 90 9 45 20 38 30 11 . . Largest 2 | . . 2 . . 2 2 2 2 2 2 2 2 2 2 . . Hottest 126 | . . 80 . . 120 120 126 126 86 91 66 56 88 72 . . Shots Fired 593 | . . 32 . . 36 58 17 155 18 88 42 71 57 19 . . Gun 372 | . . 32 . . . 41 . 61 9 80 42 68 28 11 . . Cannon 212 | . . . . . 32 17 17 94 9 8 . . 27 8 . . Launcher 4 | . . . . . 4 . . . . . . . . . . . Special 5 | . . . . . . . . . . . . 3 2 . . . Kinetic 373 | . . . . . . 41 . 61 9 78 42 68 55 19 . . Thermal 83 | . . 32 . . 32 17 . . . 2 . . . . . . Explosive 4 | . . . . . 4 . . . . . . . . . . . Electromagnetic 128 | . . . . . . . 17 94 9 8 . . . . . . Robot Hit Streak 22 | . . 6 . . 10 18 7 12 8 18 19 17 18 22 . . Robot Miss Streak 8 | . . 3 . . 6 2 2 3 2 3 7 8 3 2 . . Penetration Max 1 | . . . . . . . . . . . . 1 1 . . . Secondary Targets 4 | . . . . . . . . . . 1 2 1 . . . . Max Gunslinging Chain 1 | . . . . . . . . . . 1 1 1 . . . . Shots Hit Robots 499 | . . 39 . 4 24 75 13 101 14 72 32 59 50 16 . . Core Hits 289 | . . 7 . 1 11 17 6 41 9 63 25 60 41 8 . . Critical Hits 15 | . . . . . . 2 . 2 . . 7 . 4 . . . Critical Kills 8 | . . . . . . 1 . 1 . . 4 . 2 . . . Critical Parts Destroyed 5 | . . . . . . 1 . 1 . . 1 . 2 . . . Melee Attacks 80 | . . 34 . 4 . 42 . . . . . . . . . . Impact 80 | . . 34 . 4 . 42 . . . . . . . . . . Slashing . | . . . . . . . . . . . . . . . . . Piercing . | . . . . . . . . . . . . . . . . . Sneak Attacks 5 | . . 1 . 4 . . . . . . . . . . . . Combat Hostiles . | . . . . . . . . . . . . . . . . . Follow-up Attacks . | . . . . . . . . . . . . . . . . . Damage Inflicted 10663 | . . 811 . 386 828 1552 316 2114 698 1487 353 1098 623 397 . . Guns 4615 | . . 190 . . . 452 . 806 76 1359 341 1098 110 183 . . Cannons 3240 | . . . . . 401 247 280 1308 172 128 . . 490 214 . . Explosions 923 | . . . . . 427 . 36 . 450 . . . 10 . . . Melee 1860 | . . 621 . 386 . 853 . . . . . . . . . . Ramming 25 | . . . . . . . . . . . 12 . 13 . . . Kinetic 5129 | . . . . . . 452 . 806 76 1359 341 1098 600 397 . . Thermal 1324 | . . 190 . . 401 247 36 . 450 . . . . . . . Explosive 427 | . . . . . 427 . . . . . . . . . . . Electromagnetic 1898 | . . . . . . . 280 1308 172 128 . . 10 . . . Impact 1860 | . . 621 . 386 . 853 . . . . . . . . . . Slashing . | . . . . . . . . . . . . . . . . . Piercing . | . . . . . . . . . . . . . . . . . Highest Corruption 6 | . . . . . . . . . . 1 6 6 1 3 3 3 Average Corruption 2 | . . . . . . . . . . 1 4 6 1 2 3 3 Corruption Purged . | . . . . . . . . . . . . . . . . . Effects 46 | . . . . . . . . . . 4 11 20 1 5 4 1 Message Errors 8 | . . . . . . . . . . 2 . 2 . 1 2 1 Matter Fused 8 | . . . . . . . . . . . 4 3 . . 1 . Heat Flow Errors 5 | . . . . . . . . . . . . 2 . 2 1 . Energy Discharges 5 | . . . . . . . . . . . 2 2 1 . . . Data Loss (minor) 7 | . . . . . . . . . . 1 1 4 . 1 . . Misfires 3 | . . . . . . . . . . . 2 1 . . . . Targeting Errors 10 | . . . . . . . . . . 1 2 6 . 1 . . Overload Shots . | . . . . . . . . . . . . . . . . . Overflow Damage 365 | . . 90 . 179 21 74 . . . . . . . 1 . . Projectiles 10 | . . . . 9 . . . . . . . . . 1 . . Explosions 21 | . . . . . 21 . . . . . . . . . . . Melee 334 | . . 90 . 170 . 74 . . . . . . . . . . Knockbacks 29 | . . . . 4 . 1 . . . . 1 . 14 9 . . Impact 5 | . . . . 3 . 1 . . . . 1 . . . . . Kinetic 23 | . . . . . . . . . . . . . 14 9 . . Secondary 1 | . . . . 1 . . . . . . . . . . . . Self-Inflicted Damage 548 | . . . . . . . . . 360 . 6 . 182 . . . Shots 7 | . . . . . . . . . 4 . . . 3 . . . Rammed 2 | . . . . . . . . . . . 1 . 1 . . . Targets Rammed 2 | . . . . . . . . . . . 1 . 1 . . . Kicked . | . . . . . . . . . . . . . . . . . Crushed . | . . . . . . . . . . . . . . . . . Highest Temperature 327 | . . 190 . . 222 327 69 108 38 6 34 236 3 171 67 . Average Temperature 66 | . . 70 . . 79 133 29 26 20 6 17 119 3 76 43 . Received Heat Transfer 2970 | . . 238 . . 36 639 27 504 72 522 256 207 63 151 246 9 Siege Activations . | . . . . . . . . . . . . . . . . . Robots Corrupted 2 | . . . . . . . . 2 . . . . . . . . Combat Hostiles 2 | . . . . . . . . 2 . . . . . . . . Parts Fried 14 | . . . . 3 . 3 2 5 . 1 . . . . . . Impact Corruptions 19 | . . 5 . 8 . 6 . . . . . . . . . . Robots Melted 1 | . . . . . 1 . . . . . . . . . . . Combat Hostiles 1 | . . . . . 1 . . . . . . . . . . . Parts Melted 4 | . . . . . 4 . . . . . . . . . . . Heat Transferred 2219 | . . 450 . . 851 518 50 . 350 . . . . . . . Parts Sabotaged . | . . . . . . . . . . . . . . . . . Parts Stolen . | . . . . . . . . . . . . . . . . . Parts Stripped . | . . . . . . . . . . . . . . . . . Power Chain Reactions 2 | . . . . . . . 1 . 1 . . . . . . . Missiles Intercepted . | . . . . . . . . . . . . . . . . . Alert | -11 -10 -10 -10 -9 -8 -8 -8 -8 -7 -7 -7 -7 -6 -6 -6 -6 ------- Run | Scr Mat Min Exi Min Mat Gar Mat Gar Fac Gar Fac Sto Fac Gar Fac Gar Peak Influence 966 | . 44 61 . 20 242 506 384 966 749 824 532 323 278 95 57 30 Average Influence 328 | . 25 26 . 17 167 289 313 666 552 706 455 205 172 57 38 17 Maximum Alert Level 3 | . . . . . 1 2 1 3 3 3 2 1 1 . . . Low Security (%) 36 | 100 100 100 . 100 48 14 . . . . . 48 37 100 100 100 Level 1 24 | . . . . . 51 59 100 6 . . 9 51 62 . . . Level 2 23 | . . . . . . 26 . 49 81 32 90 . . . . . Level 3 14 | . . . . . . . . 44 18 67 . . . . . . Level 4 . | . . . . . . . . . . . . . . . . . Level 5 . | . . . . . . . . . . . . . . . . . High Security . | . . . . . . . . . . . . . . . . . Max Security . | . . . . . . . . . . . . . . . . . Squads Dispatched 11 | . . . . . 1 . 1 . 3 . . . 5 . 1 . Investigation 4 | . . . . . . . 1 . 2 . . . 1 . . . Extermination 1 | . . . . . . . . . . . . . 1 . . . Reinforcement 4 | . . . . . 1 . . . . . . . 2 . 1 . Assault . | . . . . . . . . . . . . . . . . . Garrison 2 | . . . . . . . . . 1 . . . 1 . . . Intercept . | . . . . . . . . . . . . . . . . . Construction Impeded . | . . . . . . . . . . . . . . . . . Haulers Reinforced 1 | . . . . . . . . . . . . . 1 . . . Stealth | -11 -10 -10 -10 -9 -8 -8 -8 -8 -7 -7 -7 -7 -6 -6 -6 -6 --------- Run | Scr Mat Min Exi Min Mat Gar Mat Gar Fac Gar Fac Sto Fac Gar Fac Gar Distress Signals 6 | . . 1 . . 2 . . . . . . 3 . . . . Communications Jammed . | . . . . . . . . . . . . . . . . . Distress Signals . | . . . . . . . . . . . . . . . . . Times Spotted 201 | . 2 16 . . 18 20 7 35 6 12 22 21 15 9 7 11 Peak Tracking Total 13 | . 2 3 . . 7 4 3 5 4 5 13 6 6 4 4 8 Tactical Retreats 25 | . . 2 . . 3 4 . 6 . . 2 1 1 4 2 . Traps | -11 -10 -10 -10 -9 -8 -8 -8 -8 -7 -7 -7 -7 -6 -6 -6 -6 ------- Run | Scr Mat Min Exi Min Mat Gar Mat Gar Fac Gar Fac Sto Fac Gar Fac Gar Traps Triggered 12 | . . . . . . 2 . 6 . 2 1 1 . . . . Indirectly . | . . . . . . . . . . . . . . . . . Trap Hack Attempts . | . . . . . . . . . . . . . . . . . Triggered . | . . . . . . . . . . . . . . . . . Disarmed . | . . . . . . . . . . . . . . . . . Reprogrammed . | . . . . . . . . . . . . . . . . . Reused . | . . . . . . . . . . . . . . . . . Traps Extracted . | . . . . . . . . . . . . . . . . . Installed . | . . . . . . . . . . . . . . . . . Triggered 1 | . . . . . . . . 1 . . . . . . . . Machines | -11 -10 -10 -10 -9 -8 -8 -8 -8 -7 -7 -7 -7 -6 -6 -6 -6 ---------- Run | Scr Mat Min Exi Min Mat Gar Mat Gar Fac Gar Fac Sto Fac Gar Fac Gar Machines Disabled 15 | . . . . . . . . 4 5 1 . 1 3 1 . . Max in Single Turn 5 | . . . . . . . . 1 5 1 . 1 2 1 . . Garrison Relay 6 | . . . . . . . . 4 . 1 . . . 1 . . Machines Sabotaged . | . . . . . . . . . . . . . . . . . Garrisons Compromised . | . . . . . . . . . . . . . . . . . Overloaded Fab Kills . | . . . . . . . . . . . . . . . . . Fab Network Shutdowns . | . . . . . . . . . . . . . . . . . Hacking | -11 -10 -10 -10 -9 -8 -8 -8 -8 -7 -7 -7 -7 -6 -6 -6 -6 --------- Run | Scr Mat Min Exi Min Mat Gar Mat Gar Fac Gar Fac Sto Fac Gar Fac Gar Machines Accessed 18 | . 1 . 1 . 4 . 1 . 2 . 2 4 2 . 1 . Terminals 9 | . 1 . . . 3 . . . . . 1 4 . . . . Fabricators 2 | . . . . . . . . . 1 . . . 1 . . . Repair Stations . | . . . . . . . . . . . . . . . . . Recycling Units . | . . . . . . . . . . . . . . . . . Scanalyzers 1 | . . . . . . . . . . . 1 . . . . . Garrison Access 5 | . . . . . 1 . 1 . 1 . . . 1 . 1 . Total Hacks 55 | . 4 . 5 . 12 . 3 . 7 . 8 10 5 . 1 . Successful 30 | . 2 . 5 . 6 . 1 . 2 . 6 3 4 . 1 . Failed 25 | . 2 . . . 6 . 2 . 5 . 2 7 1 . . . Catastrophic 3 | . 1 . . . . . 1 . . . . 1 . . . . Database Lockouts . | . . . . . . . . . . . . . . . . . Manual 15 | . 2 . . . 7 . 2 . 2 . . 2 . . . . Terminals 24 | . 4 . . . 8 . . . . . 2 10 . . . . Fabricators 8 | . . . . . . . . . 4 . . . 4 . . . Repair Stations . | . . . . . . . . . . . . . . . . . Recycling Units . | . . . . . . . . . . . . . . . . . Scanalyzers 6 | . . . . . . . . . . . 6 . . . . . Garrison Access 12 | . . . . . 4 . 3 . 3 . . . 1 . 1 . Terminal Hacks 14 | . 2 . 5 . 5 . . . . . . 2 . . . . Record 5 | . . . 5 . . . . . . . . . . . . . Part Schematic 2 | . 2 . . . . . . . . . . . . . . . Open Door 1 | . . . . . . . . . . . . 1 . . . . Scanalyzer Index 1 | . . . . . 1 . . . . . . . . . . . Unreport Threat 1 | . . . . . . . . . . . . 1 . . . . Locate Traps 1 | . . . . . 1 . . . . . . . . . . . Recall Reinforcements 1 | . . . . . 1 . . . . . . . . . . . Zone Layout 2 | . . . . . 2 . . . . . . . . . . . Fabricator Hacks 4 | . . . . . . . . . 1 . . . 3 . . . Load Schematic 2 | . . . . . . . . . 1 . . . 1 . . . Build 2 | . . . . . . . . . . . . . 2 . . . Repair Station Hacks . | . . . . . . . . . . . . . . . . . Recycling Unit Hacks . | . . . . . . . . . . . . . . . . . Scanalyzer 6 | . . . . . . . . . . . 6 . . . . . Insert Component 1 | . . . . . . . . . . . 1 . . . . . Analyze 5 | . . . . . . . . . . . 5 . . . . . Garrison Access Hacks 5 | . . . . . 1 . 1 . 1 . . . 1 . 1 . Unlock Access 5 | . . . . . 1 . 1 . 1 . . . 1 . 1 . Unauthorized Hacks 10 | . . . . . 3 . 2 . 2 . . 3 . . . . Terminals 1 | . . . . . . . . . . . . 1 . . . . Botnet 1 | . . . . . . . . . . . . 1 . . . . Fabricators . | . . . . . . . . . . . . . . . . . Repair Stations . | . . . . . . . . . . . . . . . . . Recycling Units . | . . . . . . . . . . . . . . . . . Scanalyzers . | . . . . . . . . . . . . . . . . . Garrison Access . | . . . . . . . . . . . . . . . . . Data Cores Recovered . | . . . . . . . . . . . . . . . . . Used . | . . . . . . . . . . . . . . . . . Hacking Detections 16 | . 1 . . . 4 . 1 . 2 . 2 4 2 . . . Full Trace Events 5 | . . . . . 1 . 1 . 2 . . . 1 . . . Feedback Events 1 | . . . . . . . . . 1 . . . . . . . Corruption 1 | . . . . . . . . . 1 . . . . . . . Feedback Blocked . | . . . . . . . . . . . . . . . . . Robot Schematics Acquired . | . . . . . . . . . . . . . . . . . Robots Built . | . . . . . . . . . . . . . . . . . Matter . | . . . . . . . . . . . . . . . . . Time . | . . . . . . . . . . . . . . . . . Total Robot Build Rating . | . . . . . . . . . . . . . . . . . Part Schematics Acquired 3 | . 2 . . . . . . . . . 1 . . . . . Parts Built 4 | . . . . . . . . . . . . . 4 . . . Matter 380 | . . . . . . . . . . . . . 380 . . . Time 94 | . . . . . . . . . . . . . 94 . . . Total Part Build Rating 20 | . . . . . . . . . . . . . 20 . . . Parts Repaired . | . . . . . . . . . . . . . . . . . Time . | . . . . . . . . . . . . . . . . . Parts Recycled . | . . . . . . . . . . . . . . . . . Recycled Matter . | . . . . . . . . . . . . . . . . . Retrieved Matter . | . . . . . . . . . . . . . . . . . Retrieved Components . | . . . . . . . . . . . . . . . . . Parts Scanalyzed 1 | . . . . . . . . . . . 1 . . . . . Part Schematics Acquired 1 | . . . . . . . . . . . 1 . . . . . Parts Damaged 1 | . . . . . . . . . . . 1 . . . . . Bothacking | -11 -10 -10 -10 -9 -8 -8 -8 -8 -7 -7 -7 -7 -6 -6 -6 -6 ------------ Run | Scr Mat Min Exi Min Mat Gar Mat Gar Fac Gar Fac Sto Fac Gar Fac Gar Used RIF Installer 4 | . . . . . . 1 . 1 . 1 . . . 1 . . Patrol Navigation 1 | . . . . . . . . . . 1 . . . . . . Structural Interface 1 | . . . . . . . . 1 . . . . . . . . Program Shield 1 | . . . . . . . . . . . . . . 1 . . Robots Hacked 5 | . . . . . . . . . . . . 3 2 . . . Non-combat 1 | . . . . . . . . . . . . . 1 . . . Combat 4 | . . . . . . . . . . . . 3 1 . . . Robot Hacks Applied 5 | . . . . . . . . . . . . 3 2 . . . start_evac 1 | . . . . . . . . . . . . . 1 . . . find_garrison 1 | . . . . . . . . . . . . . 1 . . . overwrite_iff 3 | . . . . . . . . . . . . 3 . . . . Relay Couplers Released 25 | . . . . . . . . 16 . 5 . . . 4 . . Machine Destruction 25 | . . . . . . . . 16 . 5 . . . 4 . . Attached 4 | . . . . . . . . . . . . 1 1 2 . . Robots Rewired 4 | . . . . . . . . 4 . . . . . . . . Allies Hacked . | . . . . . . . . . . . . . . . . . Hacks Repelled . | . . . . . . . . . . . . . . . . . Allies | -11 -10 -10 -10 -9 -8 -8 -8 -8 -7 -7 -7 -7 -6 -6 -6 -6 -------- Run | Scr Mat Min Exi Min Mat Gar Mat Gar Fac Gar Fac Sto Fac Gar Fac Gar Total Allies 11 | . . 4 . . . . . 4 . . . 3 . . . . Largest Group 3 | . . 3 2 1 1 . . 3 3 . . 1 . . . . Highest-Rated Group 63 | . . 47 47 16 16 . . 63 58 . . 16 . . . . Highest-Rated Ally 31 | . . 31 31 16 16 . . 21 21 . . 16 . . . . Total Orders 5 | . . 4 . . . . . . . . . . . . 1 . GOTO 3 | . . 3 . . . . . . . . . . . . . . FOLLOW 1 | . . 1 . . . . . . . . . . . . . . EXPLORE 1 | . . . . . . . . . . . . . . . 1 . Ally Attacks 88 | . . 49 . . 8 . . 20 6 . . 5 . . . . Total Damage 1489 | . . 583 . . 46 . . 633 148 . . 79 . . . . Kills 13 | . . 8 . . . . . 3 2 . . . . . . . Allies Corrupted . | . . . . . . . . . . . . . . . . . Allies Melted . | . . . . . . . . . . . . . . . . . Intel | -11 -10 -10 -10 -9 -8 -8 -8 -8 -7 -7 -7 -7 -6 -6 -6 -6 ------- Run | Scr Mat Min Exi Min Mat Gar Mat Gar Fac Gar Fac Sto Fac Gar Fac Gar Robot Analysis Total . | . . . . . . . . . . . . . . . . . Derelict Logs Recovered 1 | . . 1 . . . . . . . . . . . . . . Drone Launches 2 | . . . . . . . . . . . . . . . 2 . Drone Recoveries . | . . . . . . . . . . . . . . . . . Exploration | -11 -10 -10 -10 -9 -8 -8 -8 -8 -7 -7 -7 -7 -6 -6 -6 -6 ------------- Run | Scr Mat Min Exi Min Mat Gar Mat Gar Fac Gar Fac Sto Fac Gar Fac Gar Turns Passed 7132 | 55 52 831 285 255 442 849 307 1120 299 687 440 501 473 264 194 78 Spaces Moved 4911 | 37 41 623 337 284 285 502 182 639 202 299 242 394 329 245 219 51 Core 21 | 13 . 8 . . . . . . . . . . . . . . Treads 5 | . . . . . . . . . 5 . . . . . . . Legs 922 | 24 41 228 . . 167 27 41 . 16 299 78 . 1 . . . Wheels 2540 | . . 365 337 284 118 475 141 639 181 . . . . . . . Hover 1423 | . . 22 . . . . . . . . 164 394 328 245 219 51 Flight . | . . . . . . . . . . . . . . . . . Fastest Speed 50 | 50 120 80 80 80 80 100 95 95 110 150 65 65 63 68 72 76 Average Speed 101 | 107 120 102 80 80 116 105 120 100 125 173 136 68 76 75 85 76 Slowest Speed 360 | 150 120 150 80 80 160 180 210 110 220 210 360 76 150 142 220 76 Overloaded Moves . | . . . . . . . . . . . . . . . . . Propulsion Burnouts . | . . . . . . . . . . . . . . . . . Robots Hopped . | . . . . . . . . . . . . . . . . . Cave-ins Triggered . | . . . . . . . . . . . . . . . . . Exploration Rate (%) 38 | 4 17 92 77 71 26 60 17 89 5 41 7 58 8 49 11 26 Regions Visited 16 Branch Regions 4 Pre-discovered Areas 1 | . . . 1 . . . . . . . . . . . . . Known Exits Taken 8 | . . . 1 . 1 . 1 . 1 . 1 1 1 . 1 . Unknown Exits Taken 4 | 1 1 1 . 1 . . . . . . . . . . . . Scrap Searched 2 | . . 1 . 1 . . . . . . . . . . . . Spaces Dug . | . . . . . . . . . . . . . . . . . Terrain Destroyed 126 | . . . . . 37 . 4 . 56 . . 1 28 . . . Melee . | . . . . . . . . . . . . . . . . . Projectile 1 | . . . . . . . . . . . . 1 . . . . AOE 125 | . . . . . 37 . 4 . 56 . . . 28 . . . Actions | -11 -10 -10 -10 -9 -8 -8 -8 -8 -7 -7 -7 -7 -6 -6 -6 -6 --------- Run | Scr Mat Min Exi Min Mat Gar Mat Gar Fac Gar Fac Sto Fac Gar Fac Gar Total 6344 | 49 44 753 352 308 360 676 252 957 231 378 306 561 494 306 227 90 Wait 587 | 4 2 46 14 14 18 54 39 124 1 2 16 90 84 39 1 39 Move 4899 | 36 40 622 336 283 284 501 182 638 202 298 241 393 329 244 219 51 Hop . | . . . . . . . . . . . . . . . . . Pick Up 78 | 3 2 8 . 2 7 5 4 6 4 7 4 4 16 4 2 . Fast Attach 74 | 6 . 8 . . 10 5 6 7 4 5 7 6 8 2 . . Attach 35 | . . 5 . . 2 4 . 5 1 5 . 1 8 3 1 . Detach 4 | . . 1 . . 1 . . . . . . . 1 1 . . Swap 66 | . . 3 1 2 3 2 2 15 3 7 10 12 6 . . . Drop 101 | . . 10 1 3 15 2 9 5 7 9 7 17 11 2 3 . Fire 334 | . . 16 . . 20 45 10 90 9 45 20 38 30 11 . . Melee 80 | . . 34 . 4 . 42 . . . . . . . . . . Ram 1 | . . . . . . . . . . . . . 1 . . . Kick 1 | . . . . . . . . . . . 1 . . . . . Crush . | . . . . . . . . . . . . . . . . . Escape Stasis 45 | . . . . . . 16 . 29 . . . . . . . . Rewire 38 | . . . . . . . . 38 . . . . . . . . Trap . | . . . . . . . . . . . . . . . . . Miscellaneous 1 | . . . . . . . . . . . . . . . 1 . Route ------- -11/Scrapyard -10/Materials -10/Mines -10/Exiles (discovered 2 exits: *Min x2) -9/Mines -8/Materials -8/Garrison (discovered 2 exits: *Mat x2) -8/Materials (discovered 2 exits: *Fac / Gar) -8/Garrison (discovered 3 exits: *Fac x3) -7/Factory -7/Garrison -7/Factory -7/Storage -6/Factory -6/Garrison -6/Factory -6/Garrison History --------- Turn | Location | Event 2 | -11/Scrapyard | Discovered new exit (range 16) 56 | -11/Scrapyard | Entered Materials 95 | -10/Materials | Discovered new exit (range 12) 108 | -10/Materials | Entered Mines 108 | -10/Mines | A weapon hastily lodged in a ceiling crevice suddenly fell to the ground 199 | -10/Mines | Assisted by bots powering up and referring to "LRC-V3" 270 | -10/Mines | Assembled infested the area 318 | -10/Mines | Build established: Mutant 377 | -10/Mines | Assisted by bots powering up and referring to "LRC-V3" 585 | -10/Mines | Core integrity fell below 50% 603 | -10/Mines | Lost 3 parts (1p2n) 910 | -10/Mines | Received a Mining Laser from a helpful Derelict 913 | -10/Mines | Deemed a non-threat by the Exiles lab entrance 913 | -10/Mines | Discovered new exit (range 5) 939 | -10/Mines | Entered Exiles 939 | -10/Exiles | Accompanied by 2 allies 940 | -10/Exiles | Identified exit to Mines 961 | -10/Exiles | Met 8R-AWN 973 | -10/Exiles | Met EX-HEX 1003 | -10/Exiles | Met EX-DEC 1014 | -10/Exiles | Learned location of Zion (-6) 1057 | -10/Exiles | Visited The Gauntlet 1224 | -10/Exiles | Entered Mines 1224 | -9/Mines | Accompanied by 1 ally 1448 | -9/Mines | Met a Derelict bent on vengeance 1452 | -9/Mines | Discovered new exit (range 16) 1479 | -9/Mines | Entered Materials 1479 | -8/Materials | Accompanied by 1 ally 1479 | -8/Materials | Evolved 4 slots: Propulsion x1, Utility x3 1831 | -8/Materials | Found Powered Armor 1834 | -8/Materials | Found Powered Armor 1837 | -8/Materials | Found Powered Armor 1840 | -8/Materials | Found Powered Armor 1879 | -8/Materials | Identified exit to Garrison 1921 | -8/Materials | Entered Garrison 1923 | -8/Garrison | Triggered checkpoint 2065 | -8/Garrison | Triggered checkpoint 2171 | -8/Garrison | Lost 3 parts (2u1w) 2514 | -8/Garrison | Discovered new exit (range 10) 2538 | -8/Garrison | Triggered checkpoint 2612 | -8/Garrison | Build established: Scavenger-Mutant 2648 | -8/Garrison | Triggered checkpoint 2722 | -8/Garrison | Discovered new exit (range 9) 2738 | -8/Garrison | Identified exit to Materials 2744 | -8/Garrison | Installed Relay Interface Framework 2760 | -8/Garrison | Triggered checkpoint 2770 | -8/Garrison | Entered Materials 3038 | -8/Materials | Discovered new exit (range 9) 3077 | -8/Materials | Identified exit to Garrison 3077 | -8/Materials | Entered Garrison 3081 | -8/Garrison | Build established: Mutant 3130 | -8/Garrison | Triggered checkpoint 3222 | -8/Garrison | Garrison Relay disabled 3252 | -8/Garrison | Triggered checkpoint 3292 | -8/Garrison | Core integrity fell below 50% 3348 | -8/Garrison | Lost 4 parts (1n1u2w) 3396 | -8/Garrison | Triggered checkpoint 3506 | -8/Garrison | Triggered checkpoint 3585 | -8/Garrison | Garrison Relay disabled 3607 | -8/Garrison | Discovered new exit (range 13) 3614 | -8/Garrison | Build established: Scavenger-Mutant 3694 | -8/Garrison | Discovered new exit (range 14) 3734 | -8/Garrison | Spotted B-75 Beast 3738 | -8/Garrison | Triggered checkpoint 3782 | -8/Garrison | Lost 5 parts (1p1n2u1w) 3878 | -8/Garrison | Allies destroyed B-75 Beast 3922 | -8/Garrison | Garrison Relay disabled 4053 | -8/Garrison | Triggered checkpoint 4089 | -8/Garrison | Discovered new exit (range 10) 4104 | -8/Garrison | Expanded RIF knowledge: Structural Interface 4130 | -8/Garrison | Triggered checkpoint 4157 | -8/Garrison | Garrison Relay disabled 4197 | -8/Garrison | Entered Factory 4197 | -7/Factory | Accompanied by 3 allies 4197 | -7/Factory | Evolved 2 slots: Utility x2 4429 | -7/Factory | Garrison activated, responded to threat 4496 | -7/Factory | Identified exit to Garrison 4496 | -7/Factory | Entered Garrison 4764 | -7/Garrison | Triggered checkpoint 4918 | -7/Garrison | Triggered checkpoint 4984 | -7/Garrison | Discovered new exit (range 10) 5011 | -7/Garrison | Expanded RIF knowledge: Patrol Navigation 5122 | -7/Garrison | Garrison Relay disabled 5183 | -7/Garrison | Entered Factory 5288 | -7/Factory | Assembled infested ambush trap array 5303 | -7/Factory | Core integrity fell below 50% 5480 | -7/Factory | Discovered new exit (range 15) 5556 | -7/Factory | Identified exit to Storage 5623 | -7/Factory | Entered Storage 5736 | -7/Storage | Found Prototype Processor 5736 | -7/Storage | Identified Exp. Targeting Computer 6075 | -7/Storage | Core integrity fell below 20% 6094 | -7/Storage | Discovered new exit (range 16) 6124 | -7/Storage | Identified exit to Factory 6124 | -7/Storage | Entered Factory 6124 | -6/Factory | Evolved 2 slots: Propulsion x1, Utility x1 6436 | -6/Factory | Build established: Mutant 6464 | -6/Factory | Fabricated Cmb. Airjet (x2) 6546 | -6/Factory | Garrison activated, responded to threat 6568 | -6/Factory | Fabricated Cmb. Airjet (x2) 6581 | -6/Factory | Core integrity fell below 50% 6597 | -6/Factory | Identified exit to Garrison 6597 | -6/Factory | Entered Garrison 6601 | -6/Garrison | Expanded RIF knowledge: Program Shield 6627 | -6/Garrison | Lost 8 parts (1p2n2u3w) 6638 | -6/Garrison | Garrison Relay disabled 6674 | -6/Garrison | Spotted B-75 Beast 6732 | -6/Garrison | Triggered checkpoint 6784 | -6/Garrison | Lost 3 parts (1p1n1w) 6851 | -6/Garrison | Discovered new exit (range 15) 6861 | -6/Garrison | Identified exit to Factory 6861 | -6/Garrison | Entered Factory 6947 | -6/Factory | Build established: Bothacker-Mutant 6955 | -6/Factory | Core integrity fell below 20% 7008 | -6/Factory | Lost 3 parts (1p2n) 7055 | -6/Factory | Identified exit to Garrison 7055 | -6/Factory | Entered Garrison 7132 | -6/Garrison | Triggered checkpoint 7133 | -6/Garrison | Destroyed by G-50 Soldier with Heavy Laser Last Messages --------------- 06976_ Drone destroyed. 06977_ Cld. Deuterium Engine destroyed. 06983_ Dropped Imp. Heat Sink. 06983_ Dropped Hcp. Storage Unit. 06991_ RIF reveals location of hidden door. 06992_ System corrupted: Matter fused (-7). 07000_ Dropped Imp. Heat Sink. 07000_ Acquired Mic. Nuclear Core. 07004_ RIF reveals location of hidden door. 07044_ Detecting nearby Garrison Access. 07055_ Connecting with Garrison Access... >>Unlock Access door unlocked. 07055_ EXIT=UNLOCKED: GARRISON LOCATION=GARRISON GOAL=ESCAPE 07064_ RIF reveals location of phase wall. 07088_ JHJB4ZTIG A4H L 3SZPARB9 07129_ RIF reveals location of phase wall. Garrison Door opened remotely. Map ----- +----------------------------------------------------+ | ?????????????????????????????????????????????????? | | ?????????????????????????????????????????????????? | | ?????????????????????????????????????????????????? | | ?????????????????????????????????????????????????? | | ?????????????????????????????????????????????????? | | ?????????????????????????????????????????????????? | | ?????????????????????????????????????????????????? | | ?????????????????????????????????????????????????? | | ?????????????????????????????????????????????????? | | ?????????????????????????????????????????????????? | | ?????????????????????????????????????????????????? | | ?????????????????????????????????????????????????? | | ?????????????????????##+##???????????????????????? | | ????????????????????## ??????????####?????????? | | ????????????????????? ????????? ??????????? | | ????????????????????? ????? ?? ???????????? | | ?????????????????????# #???? #? #????????????? | | ???????????????????### #???? ## #????????????? | | ???????????????????#s ??? "????????????? | | ???????????????????#s ?? "????????????? | | ???????????????????#s ??????????????? | | ???????????????????? s ? ????????????????? | | ?????????????????????# #? #????#????????????? | | ???????????########### ## ## ########?????? | | ???????????# #???? | | ???????????# @ +???? | | ???????????# ###+#### #????????????? | | ???????????# #?# #??## ##g ## ##????????????? | | ???????????# #?# #???# #? gg#?????????????????? | | ???????????# #?# #???# #??####?????????????????? | | ???????????# ### #####ss#???????????????????????? | | ???????????# ## + #???????????????????????? | | ???????????# ## ###### #???????????????????????? | | ??########## ##+######s #???????????????????????? | | ??# #???????????????????????? | | ??# #???????????????????????? | | ??# ####### ###+######+##???????????????????????? | | ??# #?????# #???????????????????????????????????? | | ??# #?????# #???????????????????????????????????? | | ??# #?????# #???????????????????????????????????? | | ??# #?????# #???????????????????????????????????? | | ??# #?????# ???????????????????????????????????? | | ??# #?????###???????????????????????????????????? | | ??# #???????????????????????????????????????????? | | ??# #???????????????????????????????????????????? | | ### #???????????????????????????????????????????? | | # #???????????????????????????????????????????? | | # #???????????????????????????????????????????? | | # #???????????????????????????????????????????? | | ######???????????????????????????????????????????? | +----------------------------------------------------+ Best States ------------- Heat Dissipation 76 Energy Generation 18 Energy Capacity 310 Matter Stores 400 Matter Capacity 400 Sight Range 22 Robot Scan Range 16 Terrain Scan Density 10 Armor Coverage 800 Resistance: KI 30 Resistance: EM 15 Evasion (%) 52 Targeting Accuracy 12 Recoil Reduction 1 Particle Charging 15 Offensive Hacking 10 Item Schematics ----------------- Lrg. Storage Unit | -10/Materials | Hacked Hcp. Storage Unit | -10/Materials | Hacked Cmb. Airjet | -7/Factory | Scanalyzed Robot Schematics ------------------ None Fabricated ------------ Cmb. Airjet | x2 | -6/Factory Cmb. Airjet | x2 | -6/Factory Alien Tech Used ----------------- None Achievements -------------- None Challenges ------------ None Game ------ Seed KineticSupersonicFlamer Manual? 0 Play Time 01:22:57 Cumulative 459.5 hours Start 2019.11.17 @ 17:50:55 End 2019.11.17 @ 23:14:26 Sessions 3 Manual Loads 0 Difficulty Rogue Special Mode None Game No. 295 Rogue 295 Adventurer 0 Explorer 0 Win Type - Total 31 Types 20/1/5/5/0/0/0 Lore% 88 Gallery% 88 Achievement% 76 Wizard Run 0 Options --------- ASCII 1 Keyboard 0 Movement Numpad Keybinds 0 Fullscreen 2 Font 18/SmallcapsGlow Map View 76x50 Tactical HUD 1 Map Filters NONE Filters NONE Steam 1 RUN: b35c954f-6b5c-4158-9480-a57f2287e498